bitfinex-derivatives/quotes_SOLF0:USTF0_20241012
["timestamp","ask_amount","ask_price","bid_price","bid_amount"]
[1728746486122,0.12502,146.87,146.78,8.37]
[1728746486331,8.37,146.83,146.78,8.37]
[1728746486529,8.37,146.83,146.79,2.8007]
[1728746486728,11.7759,146.83,146.79,2.8007]
[1728746487125,8.37,146.83,146.79,2.8007]
[1728746487723,5.08,146.86,146.79,2.8007]
[1728746488033,5.20502,146.87,146.81,8.37]
[1728746488223,5.20502,146.87,146.8,8.37]
[1728746488224,8.37,146.84,146.8,8.37]
[1728746490421,3.4055,146.85,146.8,11.7764]
[1728746490630,8.37,146.85,146.82,8.37]
[1728746490822,8.49502,146.87,146.82,8.37]
[1728746491635,11.90002,146.87,146.82,11.7759]
[1728746492143,8.49502,146.87,146.83,8.37]
[1728746492431,0.12502,146.87,146.83,8.37]
[1728746492736,8.37,146.85,146.81,8.37]
[1728746493235,8.37,146.85,146.81,11.7762]
[1728746493825,8.37,146.84,146.79,6.2073]
[1728746494330,3.406,146.82,146.79,2.8007]
[1728746495236,3.4058,146.83,146.79,11.1707]
[1728746495933,3.4056,146.84,146.8,3.4063]
[1728746496124,8.37,146.86,146.81,8.37]
[1728746496325,0.12502,146.87,146.82,9.7219]
[1728746496530,0.12502,146.87,146.83,8.37]
[1728746497529,3.53002,146.87,146.83,11.7757]
[1728746498129,11.90002,146.87,146.83,3.4057]
[1728746500328,8.49502,146.87,146.82,9.7219]
[1728746500535,8.37,146.85,146.82,4.7578]
[1728746502734,11.7753,146.85,146.82,4.7578]
[1728746503341,11.7753,146.85,146.82,1.3519]
[1728746503836,8.37,146.85,146.82,1.3519]
[1728746504032,3.4056,146.84,146.82,1.3519]
[1728746509349,3.4058,146.83,146.82,1.3519]
[1728746509555,8.37,146.85,146.82,1.3519]
[1728746510342,3.4056,146.84,146.82,1.3519]
[1728746512148,11.7756,146.84,146.8,11.7764]
[1728746516752,3.4056,146.84,146.8,11.7764]
[1728746517048,3.4056,146.84,146.81,11.7762]
[1728746518753,11.7756,146.84,146.81,3.4062]
[1728746519256,3.4056,146.84,146.81,3.4062]
[1728746520645,3.4063,146.81,146.79,2.8007]
[1728746520850,11.7763,146.81,146.79,2.8007]
[1728746521451,3.4063,146.81,146.79,2.8007]
[1728746522058,5.20502,146.87,146.79,2.8007]
[1728746522254,3.406,146.82,146.79,6.2073]
[1728746522653,3.406,146.82,146.79,2.8007]
[1728746523759,3.4062,146.81,146.79,2.8007]
[1728746523960,8.37,146.83,146.79,2.8007]
[1728746524663,3.4061,146.82,146.79,2.8007]
[1728746525662,3.4061,146.82,146.79,6.2074]
[1728746526053,3.4061,146.82,146.79,2.8007]
[1728746526464,11.7761,146.82,146.79,2.8007]
[1728746530667,11.7761,146.82,146.79,6.2073]
[1728746530862,0.12502,146.87,146.81,8.37]
[1728746531065,0.12502,146.87,146.86,8.37]
[1728746531262,0.12502,146.87,146.85,8.37]
[1728746531466,8.49502,146.87,146.82,9.6964]
[1728746531666,8.49502,146.87,146.82,13.1022]
[1728746532057,11.90002,146.87,146.82,13.1022]
[1728746532370,11.90002,146.87,146.83,3.4057]
[1728746537170,3.53002,146.87,146.83,11.7757]
[1728746537363,11.90002,146.87,146.83,3.4057]
[1728746537559,11.90002,146.87,146.83,11.7757]
[1728746539069,11.90002,146.87,146.82,3.4059]
[1728746539070,3.4053,146.86,146.82,3.4059]
[1728746540270,11.89992,146.87,146.83,3.4056]
[1728746540469,3.52992,146.87,146.83,8.37]
[1728746540659,11.89992,146.87,146.83,8.37]
[1728746541370,11.89992,146.87,146.84,3.4055]
[1728746541872,8.49502,146.87,146.84,3.4055]
[1728746543371,8.37,146.85,146.79,2.8007]
[1728746543568,8.37,146.85,146.82,3.4059]
[1728746545575,3.4051,146.86,146.82,3.4059]
[1728746545873,8.37,146.85,146.83,3.4056]
[1728746548068,11.7754,146.85,146.82,3.4059]
[1728746548270,0.12502,146.87,146.82,11.7759]
[1728746548576,8.37,146.86,146.82,11.7759]
[1728746548774,11.7752,146.86,146.82,11.7759]
[1728746549166,11.7752,146.86,146.83,3.4057]
[1728746549574,0.12502,146.87,146.86,3.4051]
[1728746549772,0.12502,146.87,146.86,11.7751]
[1728746550379,0.12502,146.87,146.86,3.4051]
[1728746556878,8.49502,146.87,146.79,6.28095994]
[1728746557080,8.49502,146.87,146.81,8.37]
[1728746557286,8.49502,146.87,146.82,8.37]
[1728746558378,3.4051,146.86,146.83,3.4057]
[1728746559284,11.89992,146.87,146.83,3.4057]
[1728746564087,11.89992,146.87,146.83,11.7757]
[1728746566987,3.4051,146.86,146.82,11.7759]
[1728746569192,3.4055,146.84,146.8,3.4062]
[1728746569389,3.4055,146.84,146.81,8.37]
[1728746569792,11.7755,146.84,146.81,8.37]
[1728746571189,11.7755,146.84,146.8,3.4064]
[1728746571387,11.7755,146.84,146.81,8.37]
[1728746573895,3.4055,146.84,146.81,8.37]
[1728746577392,3.4054,146.85,146.82,11.776]
[1728746577898,3.4054,146.85,146.82,8.37]
[1728746581199,8.37,146.86,146.82,8.37]
[1728746581399,11.7752,146.86,146.82,11.7758]
[1728746583301,3.4053,146.85,146.82,3.4058]
[1728746583806,11.7753,146.85,146.81,11.7761]
[1728746584306,3.4053,146.85,146.81,11.7761]
[1728746585307,3.4053,146.85,146.81,8.37]
[1728746585508,3.4053,146.85,146.82,3.406]
[1728746588502,3.4053,146.85,146.79,2.8007]
[1728746588708,11.7753,146.85,146.81,3.4062]
[1728746589107,3.4056,146.84,146.81,3.4062]
[1728746590509,8.37,146.82,146.79,2.8007]
[1728746591515,0.12502,146.87,146.76,0.12518]
[1728746591516,8.37,146.8,146.76,0.12518]
[1728746591911,3.4067,146.79,146.76,0.12518]
[1728746592114,3.4067,146.79,146.76,3.53238]
[1728746592312,3.4067,146.79,146.76,0.12518]
[1728746592516,8.37,146.78,146.76,0.12518]
[1728746592718,11.7771,146.78,146.76,0.12518]
[1728746593818,3.4071,146.78,146.76,0.12518]
[1728746594018,11.7768,146.79,146.76,0.12518]
[1728746596117,8.37,146.79,146.76,0.12518]
[1728746596323,3.407,146.78,146.76,0.12518]
[1728746597026,8.37,146.78,146.76,0.12518]
[1728746597227,3.4072,146.77,146.76,0.12518]
[1728746598226,3.4071,146.78,146.76,0.12518]
[1728746598629,11.7771,146.78,146.76,0.12518]
[1728746600123,8.37,146.77,146.76,0.12518]
[1728746600336,11.7772,146.77,146.76,0.12518]
[1728746605335,8.37,146.79,146.76,0.12518]
[1728746605531,115.39257089,146.87,146.76,0.12518]
[1728746605532,3.4071,146.78,146.76,0.12518]
[1728746605838,8.37,146.79,146.76,0.12518]
[1728746606029,3.4068,146.79,146.76,0.12518]
[1728746606226,11.7768,146.79,146.76,0.12518]
[1728746606438,3.4068,146.79,146.76,0.12518]
[1728746607628,8.37,146.78,146.76,0.12518]
[1728746609438,11.7769,146.78,146.76,0.12518]
[1728746609941,8.37,146.77,146.76,0.12518]
[1728746610240,11.7772,146.77,146.76,0.12518]
[1728746611041,8.37,146.77,146.76,0.12518]
[1728746612544,11.7772,146.77,146.76,0.12518]
[1728746616047,94.95257089,146.87,146.76,0.12518]
[1728746616350,8.37,146.77,146.76,0.12518]
[1728746618444,11.7772,146.77,146.76,0.12518]
[1728746629955,3.4072,146.77,146.76,0.12518]
[1728746630262,11.7772,146.77,146.76,0.12518]
[1728746640460,8.37,146.77,146.75,0.12502]
[1728746640662,3.4074,146.76,146.75,0.12502]
[1728746641261,11.7774,146.76,146.75,0.12502]
[1728746648763,3.46568631,146.8,146.75,0.12502]
[1728746648764,3.4068,146.79,146.75,0.12502]
[1728746648965,88.0433311,146.82,146.75,0.12502]
[1728746649169,8.37,146.79,146.75,0.12502]
[1728746649363,8.37,146.79,146.76,3.4073]
[1728746649563,8.37,146.79,146.75,1.48252]
[1728746649766,3.4064,146.81,146.77,3.4071]
[1728746650066,8.37,146.78,146.75,1.48252]
[1728746650461,8.37,146.78,146.76,3.4074]
[1728746651067,3.4064,146.81,146.76,3.4074]
[1728746651369,8.37,146.79,146.76,3.4074]
[1728746656476,8.37,146.78,146.75,1.48252]
[1728746656673,8.37,146.78,146.75,0.12502]
[1728746656874,11.777,146.78,146.75,0.12502]
[1728746658778,3.37388059,146.8,146.75,0.12502]
[1728746658779,8.37,146.76,146.75,0.12502]
[1728746659477,11.7774,146.76,146.75,0.12502]
[1728746671586,3.4074,146.76,146.75,0.12502]
[1728746671783,11.7774,146.76,146.75,0.12502]
[1728746672283,3.37388059,146.8,146.75,0.12502]
[1728746672599,3.4074,146.77,146.75,0.12502]
[1728746672797,8.37,146.76,146.75,0.12502]
[1728746673090,3.4074,146.77,146.75,0.12502]
[1728746673400,8.37,146.76,146.75,0.12502]
[1728746678099,3.4074,146.77,146.75,0.12502]
[1728746678299,8.37,146.76,146.75,0.12502]
[1728746682900,11.7774,146.76,146.75,0.12502]
[1728746691404,11.7774,146.76,146.69,0.12502]
[1728746691405,8.37,146.76,146.69,0.12502]
[1728746691703,3.45637832,146.8,146.69,3.53382]
[1728746691704,8.37,146.72,146.69,3.53382]
[1728746692204,8.37,146.72,146.7,3.4088]
[1728746693202,11.7783,146.72,146.69,3.53392]
[1728746693405,8.37,146.72,146.69,3.53392]
[1728746697612,3.4085,146.71,146.69,0.12502]
[1728746698803,8.37,146.72,146.69,0.12502]
[1728746699017,3.4088,146.7,146.69,0.12502]
[1728746700109,8.37,146.72,146.69,0.12502]
[1728746700316,3.38321257,146.75,146.69,0.12502]
[1728746700512,8.37,146.72,146.69,0.12502]
[1728746701215,11.7785,146.72,146.69,3.53402]
[1728746702806,3.4085,146.72,146.69,3.53402]
[1728746703014,11.7781,146.73,146.7,3.4088]
[1728746703213,3.4081,146.73,146.7,3.4088]
[1728746703412,11.7781,146.73,146.7,3.4088]
[1728746704015,3.408,146.74,146.71,3.4085]
[1728746704216,8.37,146.73,146.69,0.12502]
[1728746704619,8.37,146.73,146.7,3.4087]
[1728746705813,3.408,146.74,146.71,3.4085]
[1728746709325,11.7777,146.75,146.71,3.4083]
[1728746709819,11.7777,146.75,146.72,3.4083]
[1728746710615,8.37,146.75,146.72,3.4083]
[1728746712824,8.37,146.75,146.73,3.4081]
[1728746714020,3.4075,146.76,146.73,3.4081]
[1728746714221,8.37,146.74,146.72,3.4083]
[1728746715323,3.4068,146.79,146.74,3.4077]
[1728746715627,0.12502,146.81,146.74,8.37]
[1728746716027,8.37,146.79,146.74,8.37]
[1728746716524,0.12502,146.81,146.78,8.37]
[1728746716726,0.12502,146.81,146.78,11.7768]
[1728746721432,8.37,146.8,146.71,1.3019]
[1728746721729,8.37,146.79,146.76,3.4072]
[1728746722234,8.37,146.79,146.75,8.37]
[1728746722429,11.7768,146.79,146.75,11.7775]
[1728746722732,11.7768,146.79,146.75,8.37]
[1728746723029,11.7768,146.79,146.75,3.4075]
[1728746723228,8.37,146.76,146.71,1.3019]
[1728746723429,11.7774,146.76,146.73,3.4081]
[1728746726637,3.4071,146.78,146.74,11.7777]
[1728746726833,3.4071,146.78,146.74,8.37]
[1728746727926,3.4068,146.79,146.76,3.4074]
[1728746728333,3.4068,146.79,146.76,11.7774]
[1728746729635,0.12502,146.81,146.76,8.37]
[1728746729939,3.4065,146.8,146.77,11.7771]
[1728746730643,3.4065,146.8,146.77,8.37]
[1728746734542,3.4065,146.8,146.76,11.7773]
[1728746734747,8.37,146.79,146.76,11.7773]
[1728746736334,11.7767,146.79,146.76,11.7773]
[1728746737142,0.12502,146.81,146.8,3.4065]
[1728746737343,0.12502,146.81,146.8,8.37]
[1728746738641,0.12502,146.81,146.8,11.7765]
[1728746740639,0.12502,146.81,146.8,3.4065]
[1728746740943,0.12502,146.81,146.78,8.37]
[1728746742441,0.12502,146.81,146.79,3.4067]
[1728746743147,8.37,146.8,146.71,1.3019]
[1728746743336,8.37,146.76,146.72,8.37]
[1728746744844,8.37,146.76,146.74,3.4078]
[1728746747341,8.37,146.76,146.73,3.408]
[1728746748642,11.7775,146.76,146.72,3.4082]
[1728746749248,3.43769769,146.8,146.72,8.37]
[1728746749444,3.4073,146.77,146.73,3.4079]
[1728746749652,11.7773,146.77,146.73,3.4079]
[1728746753857,3.4073,146.77,146.73,3.4079]
[1728746754053,8.37,146.79,146.75,3.4076]
[1728746754254,0.12502,146.81,146.75,8.37]
[1728746754450,8.37,146.8,146.75,8.37]
[1728746754650,11.7766,146.8,146.76,3.4073]
[1728746755657,3.4066,146.8,146.76,3.4073]
[1728746755952,11.7766,146.8,146.76,3.4073]
[1728746756352,11.7766,146.8,146.76,11.7773]
[1728746756848,3.4066,146.8,146.76,11.7773]
[1728746757052,11.7766,146.8,146.76,11.7773]
[1728746761164,11.7766,146.8,146.77,3.4071]
[1728746761875,8.37,146.79,146.76,3.4073]
[1728746762769,11.7767,146.79,146.75,8.37]
[1728746762957,8.37,146.77,146.74,3.4077]
[1728746763963,11.7772,146.77,146.74,3.4077]
[1728746767071,8.37,146.77,146.74,3.4077]
[1728746767568,8.37,146.77,146.75,3.4076]
[1728746769574,3.407,146.78,146.75,3.4076]
[1728746769770,11.777,146.78,146.75,3.4076]
[1728746771369,3.4076,146.75,146.72,3.4082]
[1728746771571,8.37,146.74,146.7,2.6874]
[1728746772566,11.7776,146.75,146.71,3.4085]
[1728746772762,3.4076,146.75,146.71,3.4085]
[1728746773070,11.7776,146.75,146.71,3.4085]
[1728746773271,11.7776,146.75,146.72,3.4083]
[1728746773463,3.4084,146.72,146.7,2.6874]
[1728746773772,8.37,146.73,146.7,4.7517]
[1728746774669,8.37,146.74,146.7,4.7517]
[1728746775473,11.778,146.74,146.7,4.7517]
[1728746776272,11.778,146.74,146.7,13.1217]
[1728746776673,3.4081,146.73,146.7,13.1217]
[1728746778178,11.7779,146.74,146.7,13.1217]
[1728746780386,11.7779,146.74,146.7,3.4088]
[1728746780677,8.37,146.71,146.62,8.37]
[1728746780877,8.37,146.66,146.62,8.37]
[1728746781272,5.04,146.73,146.65,8.37]
[1728746781471,8.37,146.7,146.65,8.37]
[1728746782279,11.7789,146.7,146.66,3.4097]
[1728746785881,8.37,146.7,146.66,3.4097]
[1728746786081,3.409,146.69,146.66,3.4097]
[1728746787280,11.779,146.69,146.65,8.37]
[1728746787482,8.37,146.69,146.65,3.4099]
[1728746787680,3.4093,146.68,146.65,3.4099]
[1728746788287,3.4093,146.68,146.64,14.5909]
[1728746789684,11.7793,146.68,146.64,14.5909]
[1728746789883,8.37,146.68,146.64,14.5909]
[1728746790186,3.4095,146.67,146.64,14.5909]
[1728746792486,3.4099,146.66,146.58,1.4188]
[1728746792684,8.37,146.67,146.62,8.37]
[1728746792887,8.37,146.67,146.62,11.7804]
[1728746793087,3.4098,146.66,146.62,11.7804]
[1728746793288,3.4098,146.66,146.62,8.37]
[1728746794482,3.4098,146.66,146.63,3.53542]
[1728746800000,3.4098,146.66,146.63,11.90542]
[1728746800802,8.37,146.68,146.63,11.90542]
[1728746801006,3.4096,146.67,146.63,11.90542]
[1728746801502,11.7794,146.68,146.64,11.7801]
[1728746801707,8.37,146.68,146.64,11.7801]
[1728746802505,3.4096,146.67,146.64,11.7801]
[1728746803898,11.7796,146.67,146.64,11.7801]
[1728746807204,3.4096,146.67,146.64,11.7801]
[1728746810708,11.7796,146.67,146.63,11.90532]
[1728746812306,3.4091,146.69,146.65,11.7798]
[1728746813503,3.4093,146.68,146.65,11.7798]
[1728746814112,3.4092,146.69,146.65,11.7798]
[1728746814611,3.4094,146.68,146.65,8.37]
[1728746816813,3.4094,146.68,146.64,6.1616]
[1728746817217,11.7795,146.67,146.64,6.1616]
[1728746820720,3.4095,146.67,146.64,14.5316]
[1728746821921,3.4095,146.67,146.64,2.7516]
[1728746822323,3.409,146.69,146.65,8.37]
[1728746822726,3.409,146.69,146.66,3.4096]
[1728746824525,3.409,146.69,146.65,11.7799]
[1728746824733,3.4093,146.68,146.65,11.7799]
[1728746826835,3.4093,146.68,146.65,3.4099]
[1728746830928,3.4097,146.67,146.64,6.1617]
[1728746831237,3.4097,146.67,146.64,2.7516]
[1728746831433,8.37,146.68,146.64,2.7516]
[1728746831638,3.4098,146.66,146.64,2.7516]
[1728746832240,3.4099,146.66,146.64,2.7516]
[1728746834441,11.7799,146.66,146.64,2.7516]
[1728746836331,3.4099,146.66,146.64,2.7516]
[1728746838038,3.4099,146.66,146.63,0.12502]
[1728746839245,3.4099,146.66,146.63,3.53542]
[1728746849252,11.7799,146.66,146.63,3.53542]
[1728746850148,8.37,146.66,146.63,0.12502]
[1728746850353,8.37,146.66,146.64,3.4102]
[1728746850556,11.7796,146.67,146.64,3.4102]
[1728746856653,8.37,146.67,146.64,3.4102]
[1728746857961,3.4093,146.68,146.64,3.4102]
[1728746858153,3.4085,146.71,146.66,3.4097]
[1728746858349,8.37,146.7,146.66,3.4097]
[1728746860463,3.4091,146.69,146.66,3.4097]
[1728746860766,88.08812169,146.73,146.68,3.4092]
[1728746861058,8.37,146.7,146.68,3.4092]
[1728746863555,11.7788,146.7,146.67,3.4094]
[1728746863751,11.7788,146.7,146.65,11.1566]
[1728746864057,8.37,146.69,146.65,2.7866]
[1728746865461,3.4093,146.68,146.65,6.1965]
[1728746868260,3.4093,146.68,146.66,8.37]
[1728746868460,3.4091,146.69,146.66,8.37]
[1728746868760,8.37,146.71,146.67,11.7795]
[1728746868956,3.4087,146.71,146.67,11.7795]
[1728746869563,3.4088,146.7,146.67,11.7795]
[1728746870365,8.37,146.72,146.67,11.7795]
[1728746870559,3.4085,146.72,146.68,11.7791]
[1728746870761,96.45812169,146.73,146.68,11.7791]
[1728746872462,3.4086,146.71,146.68,11.7791]
[1728746873766,3.4088,146.7,146.67,11.7794]
[1728746877375,3.4088,146.7,146.68,8.37]
[1728746878670,3.4087,146.71,146.68,11.7792]
[1728746879470,3.4085,146.72,146.68,11.7792]
[1728746879667,3.4085,146.72,146.7,8.37]
[1728746880366,88.08812169,146.73,146.71,8.37]
[1728746880569,88.08812169,146.73,146.72,8.37]
[1728746882174,91.49622169,146.73,146.7,11.7787]
[1728746882372,91.49622169,146.73,146.65,2.7866]
[1728746882373,96.45812169,146.73,146.65,2.7866]
[1728746882677,8.37,146.73,146.69,8.37]
[1728746882873,3.4084,146.72,146.69,8.37]
[1728746883471,3.4084,146.72,146.7,8.37]
[1728746885271,8.49502,146.75,146.7,8.37]
[1728746885474,3.4082,146.73,146.7,8.37]
[1728746888170,3.4082,146.73,146.71,8.37]
[1728746889772,3.53282,146.75,146.72,8.37]
[1728746890072,0.12502,146.75,146.74,8.37]
[1728746892174,3.4081,146.73,146.68,3.4092]
[1728746892473,8.37,146.74,146.69,8.37]
[1728746892676,3.4081,146.73,146.7,8.37]
[1728746894972,3.4081,146.73,146.71,8.37]
[1728746896681,3.4079,146.74,146.71,8.37]
[1728746897381,3.4079,146.74,146.72,8.37]
[1728746898591,8.37,146.74,146.65,2.7866]
[1728746898785,8.37,146.74,146.69,8.37]
[1728746899582,8.37,146.74,146.68,3.409]
[1728746899583,3.4085,146.72,146.68,3.409]
[1728746899883,3.4085,146.72,146.7,8.37]
[1728746900275,11.81549348,146.71,146.48,9.4464891]
[1728746900485,8.37,146.69,146.64,8.37]
[1728746901086,3.4097,146.67,146.64,8.37]
[1728746903588,3.4097,146.67,146.65,8.37]
[1728746906781,3.4097,146.67,146.64,8.37]
[1728746908295,3.4093,146.68,146.65,8.37]
[1728746912695,3.4089,146.7,146.66,11.7797]
[1728746913094,8.37,146.71,146.66,8.37]
[1728746913889,3.409,146.69,146.66,8.37]
[1728746915596,8.37,146.7,146.66,8.37]
[1728746915789,11.7789,146.7,146.66,11.7797]
[1728746920398,3.4089,146.7,146.66,11.7797]
[1728746923900,11.7789,146.7,146.66,11.7797]
[1728746925402,8.37,146.67,146.65,1.4241]
[1728746926002,11.7795,146.67,146.65,1.4241]
[1728746926401,8.37,146.69,146.65,4.834]
[1728746926606,8.37,146.69,146.65,1.4241]
[1728746927606,3.4095,146.67,146.65,1.4241]
[1728746929806,3.4095,146.67,146.65,9.7941]
[1728746932708,3.4086,146.71,146.66,11.7796]
[1728746932909,8.37,146.71,146.66,11.7796]
[1728746933407,3.409,146.69,146.66,11.7796]
[1728746934106,3.409,146.69,146.66,3.4096]
[1728746934305,3.409,146.69,146.66,11.7796]
[1728746942220,3.409,146.69,146.66,3.4096]
[1728746943819,3.409,146.69,146.66,11.7796]
[1728746944124,3.4089,146.7,146.67,3.4095]
[1728746946022,3.4089,146.7,146.66,11.7796]
[1728746949723,3.4089,146.7,146.66,8.37]
[1728746949921,8.37,146.71,146.68,3.4092]
[1728746950929,11.7786,146.71,146.68,3.4092]
[1728746951329,3.4086,146.71,146.68,3.4092]
[1728746952229,3.4088,146.7,146.67,11.7794]
[1728746952430,8.37,146.72,146.67,11.7794]
[1728746953327,3.4086,146.71,146.67,11.7794]
[1728746958940,3.409,146.7,146.67,8.37]
[1728746959433,8.37,146.72,146.67,8.37]
[1728746960442,3.409,146.7,146.67,8.37]
[1728746962139,8.37,146.72,146.66,8.37]
[1728746962335,3.4093,146.68,146.65,11.1859]
[1728746962734,8.37,146.72,146.66,8.37]
[1728746962939,8.37,146.72,146.65,2.8159]
[1728746962940,3.4091,146.69,146.68,8.37]
[1728746963242,88.08336927,146.74,146.68,8.37]
[1728746963243,8.37,146.73,146.68,8.37]
[1728746964138,3.4088,146.7,146.68,8.37]
[1728746964337,88.08336927,146.74,146.69,8.37]
[1728746964643,88.08336927,146.74,146.7,8.37]
[1728746965040,3.4083,146.72,146.7,8.37]
[1728746965339,88.08336927,146.74,146.7,8.37]
[1728746965542,88.08336927,146.74,146.71,8.37]
[1728746966045,0.12502,146.75,146.71,8.37]
[1728746966343,0.12502,146.75,146.72,8.37]
[1728746966637,3.408,146.74,146.72,8.37]
[1728746970148,0.12502,146.75,146.72,8.37]
[1728746970442,3.53272,146.75,146.72,8.37]
[1728746971347,3.53272,146.75,146.74,8.37]
[1728746974147,3.53272,146.75,146.73,8.37]
[1728746977147,0.12502,146.75,146.73,8.37]
[1728746977348,0.12502,146.75,146.7,6.0683]
[1728746977540,0.12502,146.75,146.72,8.37]
[1728746978455,3.4081,146.73,146.72,8.37]
[1728746979348,3.4081,146.73,146.7,2.6597]
[1728746979548,3.4081,146.73,146.71,8.37]
[1728746979849,3.4081,146.73,146.72,8.37]
[1728746980442,3.4079,146.74,146.72,8.37]
[1728746980654,3.4079,146.74,146.73,8.37]
[1728746983553,3.4079,146.74,146.72,8.37]
[1728746987058,0.12502,146.75,146.73,8.37]
[1728746987246,3.53272,146.75,146.73,8.37]
[1728746989047,3.408,146.74,146.7,6.0683]
[1728746989255,3.408,146.74,146.72,8.37]
[1728746990360,3.408,146.74,146.73,8.37]
[1728746993361,0.12502,146.75,146.73,8.37]
[1728746993561,3.53272,146.75,146.73,8.37]
[1728746996661,0.12502,146.75,146.73,8.37]
[1728746997263,0.12502,146.75,146.73,11.7781]
[1728747001562,0.12502,146.75,146.73,8.37]
[1728747007173,0.12502,146.75,146.7,2.6597]
[1728747007473,0.12502,146.75,146.72,8.37]
[1728747007668,0.12502,146.75,146.73,8.37]
[1728747007863,3.53272,146.75,146.73,8.37]
[1728747008267,0.12502,146.75,146.73,8.37]
[1728747013379,3.53262,146.75,146.73,8.37]
[1728747019178,3.53262,146.75,146.71,3.4085]
[1728747019377,3.53262,146.75,146.73,8.37]
[1728747019582,3.53262,146.75,146.71,3.4085]
[1728747019786,3.53262,146.75,146.72,8.37]
[1728747027388,3.53262,146.75,146.72,11.7783]
[1728747029484,0.12502,146.75,146.72,11.7783]
[1728747029787,0.12502,146.75,146.74,8.37]
[1728747036394,88.0497115,146.79,146.78,8.37]
[1728747036701,8.37,146.83,146.78,8.37]
[1728747036898,3.4066,146.8,146.78,8.37]
[1728747037489,3.4066,146.8,146.79,4.97666005]
[1728747042196,3.4067,146.79,146.75,8.37]
[1728747042406,11.7767,146.79,146.76,4.97667131]
[1728747042599,11.7767,146.79,146.77,4.97667131]
[1728747042791,11.7767,146.79,146.78,4.97667131]
[1728747046302,11.7767,146.79,146.75,11.7776]
[1728747046497,11.7767,146.79,146.76,4.97314683]
[1728747046699,11.7767,146.79,146.77,4.97314683]
[1728747046904,11.7767,146.79,146.78,4.97314683]
[1728747047303,11.7767,146.79,146.74,11.7778]
[1728747047511,3.407,146.78,146.75,4.97195354]
[1728747047805,3.407,146.78,146.74,11.7778]
[1728747047806,3.407,146.78,146.76,4.97195354]
[1728747048001,3.407,146.78,146.77,4.97195354]
[1728747048605,3.407,146.78,146.74,11.7778]
[1728747048807,3.407,146.78,146.75,4.9717635]
[1728747049005,3.407,146.78,146.76,4.9717635]
[1728747049206,3.407,146.78,146.74,11.7778]
[1728747049409,3.407,146.78,146.75,4.97165789]
[1728747049710,3.407,146.78,146.76,4.97165789]
[1728747049900,3.407,146.78,146.74,11.7778]
[1728747050409,3.407,146.78,146.75,4.97165789]
[1728747050612,3.407,146.78,146.76,4.97165789]
[1728747050803,3.407,146.78,146.75,8.37]
[1728747050999,3.407,146.78,146.76,4.9714621]
[1728747051205,3.407,146.78,146.77,4.9714621]
[1728747051606,3.407,146.78,146.75,8.37]
[1728747051806,3.407,146.78,146.76,4.97121684]
[1728747052006,3.407,146.78,146.75,8.37]
[1728747052206,3.407,146.78,146.76,4.9712769]
[1728747052412,3.407,146.78,146.75,8.37]